[Event "Titled Tuesday Blitz August 10 2021"]
[White "Nguyen, Ngoc Truong Son"]
[Black "DieHardCuban"]
[WhiteFideId "12401110"]
[WhiteElo "2596"]
[BlackElo "2460"]
[Result "1-0"]
[Round "01"]
[TimeControl "180+1"]
[Date "2021.08.10"]
[WhiteClock "0:01:35"]
[BlackClock "0:00:25"]

1. e4 {[%clk 0:03:00]}  c5 {[%clk 0:02:58]} 2. Nf3 {[%clk 0:03:00]}  d6 {[%clk 0:02:58]} 3. d4 {[%clk 0:03:00]}  cxd4 {[%clk 0:02:59]} 4. Nxd4 {[%clk 0:03:01]}  Nf6 {[%clk 0:02:59]} 5. Nc3 {[%clk 0:03:02]}  Nc6 {[%clk 0:02:59]} 6. Bg5 {[%clk 0:03:01]}  e6 {[%clk 0:02:58]} 7. Qd2 {[%clk 0:03:01]}  a6 {[%clk 0:02:58]} 8. O-O-O {[%clk 0:03:00]}  Bd7 {[%clk 0:02:58]} 9. f4 {[%clk 0:02:57]}  Be7 {[%clk 0:02:57]} 10. Nf3 {[%clk 0:02:54]}  b5 {[%clk 0:02:48]} 11. Bxf6 {[%clk 0:02:50]}  gxf6 {[%clk 0:02:48]} 12. Kb1 {[%clk 0:02:45]}  Qb6 {[%clk 0:02:46]} 13. f5 {[%clk 0:02:38]}  O-O-O {[%clk 0:02:41]} 14. g3 {[%clk 0:02:28]}  Kb8 {[%clk 0:02:28]} 15. Bh3 {[%clk 0:02:23]}  Na5 {[%clk 0:02:25]} 16. fxe6 {[%clk 0:02:20]}  fxe6 {[%clk 0:02:24]} 17. Nd4 {[%clk 0:02:11]}  b4 {[%clk 0:02:10]} 18. Nce2 {[%clk 0:02:09]}  Nc4 {[%clk 0:02:10]} 19. Qd3 {[%clk 0:02:04]}  d5 {[%clk 0:01:11]} 20. exd5 {[%clk 0:02:03]}  exd5 {[%clk 0:01:11]} 21. Bxd7 {[%clk 0:02:02]}  Rxd7 {[%clk 0:01:11]} 22. Nf4 {[%clk 0:01:57]}  Rc8 {[%clk 0:01:09]} 23. Rhe1 {[%clk 0:01:55]}  Bc5 {[%clk 0:01:06]} 24. Nb3 {[%clk 0:01:50]}  Ne5 {[%clk 0:00:40]} 25. Qf5 {[%clk 0:01:42]}  Rcd8 {[%clk 0:00:25]} 26. Nxc5 {[%clk 0:01:35]}  Qxc5 {[%clk 0:00:25]} 27. Ne6 {[%clk 0:01:35]} 1-0


[Site "https://www.chess.com"]

[Event "Titled Tuesday Blitz August 10 2021"]
[White "Sevian, Samuel"]
[Black "Primbetov, Kazbek"]
[WhiteFideId "2040506"]
[BlackFideId "13702297"]
[WhiteElo "2966"]
[BlackElo "2184"]
[Result "1-0"]
[Round "01"]
[TimeControl "180+1"]
[Date "2021.08.10"]
[WhiteClock "0:02:47"]
[BlackClock "0:00:16"]

1. c4 {[%clk 0:02:59]}  Nf6 {[%clk 0:02:53]} 2. Nc3 {[%clk 0:02:59]}  g6 {[%clk 0:02:49]} 3. e4 {[%clk 0:02:59]}  d6 {[%clk 0:02:49]} 4. d3 {[%clk 0:02:59]}  Bg7 {[%clk 0:02:48]} 5. g3 {[%clk 0:02:59]}  c5 {[%clk 0:02:49]} 6. Bg2 {[%clk 0:02:58]}  Nc6 {[%clk 0:02:49]} 7. Nge2 {[%clk 0:02:59]}  O-O {[%clk 0:02:46]} 8. h3 {[%clk 0:03:00]}  a6 {[%clk 0:02:46]} 9. O-O {[%clk 0:03:00]}  Rb8 {[%clk 0:02:46]} 10. a4 {[%clk 0:03:00]}  Ne8 {[%clk 0:02:44]} 11. f4 {[%clk 0:02:59]}  Nc7 {[%clk 0:02:44]} 12. f5 {[%clk 0:03:00]}  b5 {[%clk 0:02:41]} 13. axb5 {[%clk 0:03:01]}  axb5 {[%clk 0:02:41]} 14. g4 {[%clk 0:03:02]}  bxc4 {[%clk 0:02:35]} 15. dxc4 {[%clk 0:03:03]}  Ne5 {[%clk 0:02:35]} 16. g5 {[%clk 0:02:55]}  Nxc4 {[%clk 0:02:25]} 17. Qc2 {[%clk 0:02:55]}  Ne5 {[%clk 0:02:22]} 18. Nf4 {[%clk 0:02:53]}  Nb5 {[%clk 0:02:02]} 19. Nxb5 {[%clk 0:02:46]}  Rxb5 {[%clk 0:02:03]} 20. Nd5 {[%clk 0:02:46]}  e6 {[%clk 0:01:35]} 21. Nc3 {[%clk 0:02:46]}  Rb4 {[%clk 0:01:26]} 22. f6 {[%clk 0:02:45]}  Bh8 {[%clk 0:01:26]} 23. Bf4 {[%clk 0:02:46]}  Nc4 {[%clk 0:01:05]} 24. b3 {[%clk 0:02:44]}  e5 {[%clk 0:01:01]} 25. bxc4 {[%clk 0:02:43]}  exf4 {[%clk 0:01:00]} 26. Nd5 {[%clk 0:02:44]}  Rb7 {[%clk 0:00:57]} 27. Rxf4 {[%clk 0:02:43]}  Be6 {[%clk 0:00:57]} 28. Raf1 {[%clk 0:02:43]}  Bxd5 {[%clk 0:00:56]} 29. exd5 {[%clk 0:02:44]}  Qb8 {[%clk 0:00:45]} 30. h4 {[%clk 0:02:43]}  Rb2 {[%clk 0:00:43]} 31. Qd3 {[%clk 0:02:43]}  Qb3 {[%clk 0:00:36]} 32. Qxb3 {[%clk 0:02:43]}  Rxb3 {[%clk 0:00:37]} 33. R4f3 {[%clk 0:02:43]}  Rxf3 {[%clk 0:00:32]} 34. Bxf3 {[%clk 0:02:44]}  h6 {[%clk 0:00:33]} 35. Rf2 {[%clk 0:02:44]}  Re8 {[%clk 0:00:32]} 36. Re2 {[%clk 0:02:44]}  Rxe2 {[%clk 0:00:30]} 37. Bxe2 {[%clk 0:02:45]}  hxg5 {[%clk 0:00:30]} 38. hxg5 {[%clk 0:02:46]}  Kf8 {[%clk 0:00:30]} 39. Bg4 {[%clk 0:02:46]}  Ke8 {[%clk 0:00:30]} 40. Kf2 {[%clk 0:02:45]}  Kd8 {[%clk 0:00:30]} 41. Ke2 {[%clk 0:02:45]}  Kc7 {[%clk 0:00:18]} 42. Kd3 {[%clk 0:02:44]}  Kb6 {[%clk 0:00:18]} 43. Kc3 {[%clk 0:02:45]}  Ka5 {[%clk 0:00:18]} 44. Kb3 {[%clk 0:02:45]}  Kb6 {[%clk 0:00:18]} 45. Ka3 {[%clk 0:02:46]}  Ka5 {[%clk 0:00:17]} 46. Bd7 {[%clk 0:02:46]}  Kb6 {[%clk 0:00:16]} 47. Be8 {[%clk 0:02:47]} 1-0


[Site "https://www.chess.com"]

[Event "Titled Tuesday Blitz August 10 2021"]
[White "Sharma, Dinesh K."]
[Black "Andreikin, Dmitry"]
[WhiteFideId "5004110"]
[BlackFideId "4158814"]
[WhiteElo "2392"]
[BlackElo "2782"]
[Result "0-1"]
[Round "01"]
[TimeControl "180+1"]
[Date "2021.08.10"]
[WhiteClock "0:00:45"]
[BlackClock "0:01:17"]

1. e4 {[%clk 0:02:53]}  c5 {[%clk 0:02:58]} 2. Nf3 {[%clk 0:02:52]}  e6 {[%clk 0:02:58]} 3. d4 {[%clk 0:02:50]}  cxd4 {[%clk 0:02:59]} 4. Nxd4 {[%clk 0:02:50]}  Nc6 {[%clk 0:02:59]} 5. Nc3 {[%clk 0:02:49]}  d6 {[%clk 0:02:58]} 6. g4 {[%clk 0:02:46]}  a6 {[%clk 0:02:51]} 7. g5 {[%clk 0:02:42]}  Nxd4 {[%clk 0:02:46]} 8. Qxd4 {[%clk 0:02:41]}  b5 {[%clk 0:02:46]} 9. a3 {[%clk 0:02:39]}  Ne7 {[%clk 0:02:43]} 10. Be3 {[%clk 0:02:38]}  Nc6 {[%clk 0:02:42]} 11. Qd2 {[%clk 0:02:38]}  Bb7 {[%clk 0:02:41]} 12. O-O-O {[%clk 0:02:36]}  Rc8 {[%clk 0:02:41]} 13. Kb1 {[%clk 0:02:35]}  Be7 {[%clk 0:02:34]} 14. f4 {[%clk 0:02:33]}  O-O {[%clk 0:02:33]} 15. Bd3 {[%clk 0:02:28]}  b4 {[%clk 0:02:33]} 16. axb4 {[%clk 0:02:26]}  Nxb4 {[%clk 0:02:34]} 17. f5 {[%clk 0:02:25]}  exf5 {[%clk 0:02:29]} 18. exf5 {[%clk 0:02:18]}  Nxd3 {[%clk 0:02:24]} 19. cxd3 {[%clk 0:02:14]}  Bxh1 {[%clk 0:02:21]} 20. Rxh1 {[%clk 0:02:13]}  d5 {[%clk 0:02:11]} 21. f6 {[%clk 0:02:09]}  Bb4 {[%clk 0:01:58]} 22. Bd4 {[%clk 0:02:05]}  Re8 {[%clk 0:01:54]} 23. h4 {[%clk 0:01:59]}  Bc5 {[%clk 0:01:51]} 24. Bxc5 {[%clk 0:01:55]}  Rxc5 {[%clk 0:01:51]} 25. fxg7 {[%clk 0:01:55]}  Qa5 {[%clk 0:01:41]} 26. h5 {[%clk 0:01:52]}  d4 {[%clk 0:01:37]} 27. g6 {[%clk 0:01:43]}  dxc3 {[%clk 0:01:30]} 28. gxf7+ {[%clk 0:01:35]}  Kxf7 {[%clk 0:01:31]} 29. Rf1+ {[%clk 0:00:50]}  Rf5 {[%clk 0:01:27]} 30. g8=Q+ {[%clk 0:00:49]}  Rxg8 {[%clk 0:01:23]} 31. Rxf5+ {[%clk 0:00:45]}  Qxf5 {[%clk 0:01:24]} 32. Qxc3 {[%clk 0:00:45]}  Rg1+ {[%clk 0:01:17]} 0-1


[Site "https://www.chess.com"]

[Event "Titled Tuesday Blitz August 10 2021"]
[White "Shuvalov, Evgenij"]
[Black "Tang, Andrew"]
[WhiteFideId "4187237"]
[BlackFideId "2059630"]
[WhiteElo "2163"]
[BlackElo "2588"]
[Result "1-0"]
[Round "01"]
[TimeControl "180+1"]
[Date "2021.08.10"]
[WhiteClock "0:01:16"]
[BlackClock "0:00:17"]

1. Nf3 {[%clk 0:03:00]}  d5 {[%clk 0:02:58]} 2. c4 {[%clk 0:03:00]}  e6 {[%clk 0:02:57]} 3. g3 {[%clk 0:03:00]}  Nf6 {[%clk 0:02:56]} 4. Bg2 {[%clk 0:03:01]}  Be7 {[%clk 0:02:56]} 5. b3 {[%clk 0:03:02]}  O-O {[%clk 0:02:56]} 6. Bb2 {[%clk 0:03:02]}  c5 {[%clk 0:02:57]} 7. O-O {[%clk 0:03:02]}  b6 {[%clk 0:02:57]} 8. e3 {[%clk 0:03:03]}  Bb7 {[%clk 0:02:56]} 9. Nc3 {[%clk 0:03:03]}  dxc4 {[%clk 0:02:56]} 10. bxc4 {[%clk 0:03:03]}  Nc6 {[%clk 0:02:57]} 11. d3 {[%clk 0:03:03]}  Qc7 {[%clk 0:02:57]} 12. Qe2 {[%clk 0:03:02]}  Rfd8 {[%clk 0:02:58]} 13. Rad1 {[%clk 0:03:00]}  a6 {[%clk 0:02:57]} 14. Ba1 {[%clk 0:02:58]}  b5 {[%clk 0:02:47]} 15. cxb5 {[%clk 0:02:55]}  axb5 {[%clk 0:02:48]} 16. Nxb5 {[%clk 0:02:56]}  Qa5 {[%clk 0:02:48]} 17. Nc3 {[%clk 0:02:55]}  Nb4 {[%clk 0:02:40]} 18. Rd2 {[%clk 0:02:43]}  Nfd5 {[%clk 0:02:12]} 19. Nxd5 {[%clk 0:02:42]}  exd5 {[%clk 0:02:05]} 20. Rb1 {[%clk 0:02:36]}  Qa3 {[%clk 0:01:56]} 21. Rb3 {[%clk 0:02:29]}  Qa4 {[%clk 0:01:56]} 22. Qd1 {[%clk 0:02:01]}  Ba6 {[%clk 0:01:38]} 23. Ne5 {[%clk 0:01:51]}  Nxa2 {[%clk 0:01:23]} 24. Qh5 {[%clk 0:01:37]}  g6 {[%clk 0:00:36]} 25. Nxg6 {[%clk 0:01:37]}  fxg6 {[%clk 0:00:29]} 26. Bxd5+ {[%clk 0:01:36]}  Kf8 {[%clk 0:00:29]} 27. Qf3+ {[%clk 0:01:34]}  Ke8 {[%clk 0:00:26]} 28. Bc6+ {[%clk 0:01:23]}  Qxc6 {[%clk 0:00:25]} 29. Qxc6+ {[%clk 0:01:23]}  Kf7 {[%clk 0:00:25]} 30. Rxa2 {[%clk 0:01:20]}  Bb7 {[%clk 0:00:17]} 31. Rxb7 {[%clk 0:01:16]}  Rxa2 {[%clk 0:00:17]} 32. Qf6+ {[%clk 0:01:16]} 1-0


[Site "https://www.chess.com"]

[Event "Titled Tuesday Blitz August 10 2021"]
[White "Tronenkovs, Valdis"]
[Black "Sarana, Alexey"]
[WhiteFideId "11601558"]
[BlackFideId "24133795"]
[WhiteElo "2232"]
[BlackElo "2646"]
[Result "0-1"]
[Round "01"]
[TimeControl "180+1"]
[Date "2021.08.10"]
[WhiteClock "0:00:02"]
[BlackClock "0:02:01"]

1. e4 {[%clk 0:03:00]}  c5 {[%clk 0:02:58]} 2. Ne2 {[%clk 0:03:00]}  d6 {[%clk 0:02:58]} 3. c3 {[%clk 0:03:00]}  Nf6 {[%clk 0:02:58]} 4. g3 {[%clk 0:02:59]}  Bg4 {[%clk 0:02:58]} 5. Bg2 {[%clk 0:02:57]}  Nc6 {[%clk 0:02:56]} 6. h3 {[%clk 0:02:42]}  Bxe2 {[%clk 0:02:55]} 7. Qxe2 {[%clk 0:02:40]}  g6 {[%clk 0:02:56]} 8. O-O {[%clk 0:02:34]}  Bg7 {[%clk 0:02:56]} 9. Rd1 {[%clk 0:02:25]}  Nd7 {[%clk 0:02:55]} 10. d3 {[%clk 0:02:03]}  O-O {[%clk 0:02:55]} 11. Be3 {[%clk 0:02:02]}  Rc8 {[%clk 0:02:55]} 12. Nd2 {[%clk 0:01:46]}  b5 {[%clk 0:02:54]} 13. Nf3 {[%clk 0:01:07]}  b4 {[%clk 0:02:51]} 14. d4 {[%clk 0:01:01]}  bxc3 {[%clk 0:02:51]} 15. bxc3 {[%clk 0:01:02]}  Qa5 {[%clk 0:02:52]} 16. Qd3 {[%clk 0:00:49]}  Nb6 {[%clk 0:02:48]} 17. h4 {[%clk 0:00:44]}  cxd4 {[%clk 0:02:45]} 18. cxd4 {[%clk 0:00:44]}  Nb4 {[%clk 0:02:46]} 19. Bd2 {[%clk 0:00:35]}  Nxd3 {[%clk 0:02:26]} 20. Bxa5 {[%clk 0:00:34]}  Nb2 {[%clk 0:02:27]} 21. Rdc1 {[%clk 0:00:30]}  N6c4 {[%clk 0:02:25]} 22. Bc3 {[%clk 0:00:22]}  Na4 {[%clk 0:02:25]} 23. Be1 {[%clk 0:00:22]}  Na3 {[%clk 0:02:20]} 24. Bd2 {[%clk 0:00:13]}  Nc2 {[%clk 0:02:15]} 25. Rab1 {[%clk 0:00:11]}  Nxd4 {[%clk 0:02:16]} 26. Nxd4 {[%clk 0:00:11]}  Bxd4 {[%clk 0:02:17]} 27. Rb4 {[%clk 0:00:10]}  Rxc1+ {[%clk 0:02:17]} 28. Bxc1 {[%clk 0:00:11]}  Nc3 {[%clk 0:02:17]} 29. Bf1 {[%clk 0:00:07]}  Bb6 {[%clk 0:02:12]} 30. a4 {[%clk 0:00:04]}  Nd1 {[%clk 0:02:09]} 31. Rc4 {[%clk 0:00:03]}  Bxf2+ {[%clk 0:02:06]} 32. Kg2 {[%clk 0:00:03]}  Ne3+ {[%clk 0:02:05]} 33. Bxe3 {[%clk 0:00:04]}  Bxe3 {[%clk 0:02:06]} 34. Rc7 {[%clk 0:00:04]}  e6 {[%clk 0:02:06]} 35. Bc4 {[%clk 0:00:03]}  Bc5 {[%clk 0:02:04]} 36. Kf3 {[%clk 0:00:03]}  Rb8 {[%clk 0:02:03]} 37. e5 {[%clk 0:00:02]}  Rb4 {[%clk 0:02:01]} 38. exd6 {[%clk 0:00:02]}  Bxd6 {[%clk 0:02:02]} 39. Bb5 {[%clk 0:00:02]}  Bxc7 {[%clk 0:02:01]} 0-1


[Site "https://www.chess.com"]

[Event "Titled Tuesday Blitz August 10 2021"]
[White "Yoo, Christopher Woojin"]
[Black "Vasli, Aref"]
[WhiteFideId "30909694"]
[BlackFideId "417521"]
[WhiteElo "2105"]
[BlackElo "2257"]
[Result "1-0"]
[Round "01"]
[TimeControl "180+1"]
[Date "2021.08.10"]
[WhiteClock "0:00:06"]
[BlackClock "0:00:14"]

1. e4 {[%clk 0:02:55]}  e5 {[%clk 0:02:59]} 2. Nf3 {[%clk 0:02:51]}  Nc6 {[%clk 0:02:59]} 3. Bc4 {[%clk 0:02:51]}  Bc5 {[%clk 0:02:58]} 4. b4 {[%clk 0:02:51]}  Bb6 {[%clk 0:02:57]} 5. b5 {[%clk 0:02:46]}  Na5 {[%clk 0:02:57]} 6. Be2 {[%clk 0:02:31]}  Nf6 {[%clk 0:02:53]} 7. d3 {[%clk 0:02:09]}  O-O {[%clk 0:02:49]} 8. O-O {[%clk 0:02:07]}  h6 {[%clk 0:02:46]} 9. c4 {[%clk 0:01:51]}  d6 {[%clk 0:02:42]} 10. Nc3 {[%clk 0:01:49]}  Bg4 {[%clk 0:02:33]} 11. Bb2 {[%clk 0:01:44]}  c6 {[%clk 0:02:28]} 12. h3 {[%clk 0:01:27]}  Bxf3 {[%clk 0:02:27]} 13. Bxf3 {[%clk 0:01:28]}  Bd4 {[%clk 0:02:26]} 14. Qd2 {[%clk 0:01:27]}  a6 {[%clk 0:02:22]} 15. Rab1 {[%clk 0:01:19]}  axb5 {[%clk 0:01:59]} 16. cxb5 {[%clk 0:01:20]}  c5 {[%clk 0:01:59]} 17. Bc1 {[%clk 0:01:05]}  c4 {[%clk 0:01:55]} 18. Ne2 {[%clk 0:01:04]}  Bc5 {[%clk 0:01:46]} 19. d4 {[%clk 0:00:59]}  exd4 {[%clk 0:01:46]} 20. Nxd4 {[%clk 0:01:00]}  Re8 {[%clk 0:01:45]} 21. Re1 {[%clk 0:01:00]}  Qb6 {[%clk 0:01:41]} 22. Bb2 {[%clk 0:00:59]}  Nd7 {[%clk 0:01:23]} 23. Bc3 {[%clk 0:00:53]}  Ne5 {[%clk 0:01:21]} 24. Be2 {[%clk 0:00:53]}  Nd3 {[%clk 0:01:18]} 25. Bxd3 {[%clk 0:00:52]}  Bxd4 {[%clk 0:01:18]} 26. Bxa5 {[%clk 0:00:35]}  Rxa5 {[%clk 0:01:03]} 27. Bxc4 {[%clk 0:00:35]}  Bc5 {[%clk 0:01:02]} 28. Rb3 {[%clk 0:00:26]}  Rea8 {[%clk 0:01:00]} 29. Rg3 {[%clk 0:00:23]}  Kf8 {[%clk 0:00:50]} 30. Qf4 {[%clk 0:00:22]}  f6 {[%clk 0:00:47]} 31. Qf5 {[%clk 0:00:16]}  Rxa2 {[%clk 0:00:16]} 32. Qd5 {[%clk 0:00:06]}  Bxf2+ {[%clk 0:00:15]} 33. Kh1 {[%clk 0:00:06]}  Qc7 {[%clk 0:00:13]} 34. Qg8+ {[%clk 0:00:06]}  Ke7 {[%clk 0:00:14]} 35. Rxg7# {[%clk 0:00:06]} 1-0


[Site "https://www.chess.com"]

[Event "Titled Tuesday Blitz August 10 2021"]
[White "Andreikin, Dmitry"]
[Black "Khoroshev, Nikita"]
[WhiteFideId "4158814"]
[BlackFideId "14200287"]
[WhiteElo "2782"]
[BlackElo "2328"]
[Result "0-1"]
[Round "02"]
[TimeControl "180+1"]
[Date "2021.08.10"]
[WhiteClock "0:00:21"]
[BlackClock "0:00:28"]

1. Nf3 {[%clk 0:03:00]}  d5 {[%clk 0:02:59]} 2. e3 {[%clk 0:03:00]}  Nf6 {[%clk 0:02:58]} 3. c4 {[%clk 0:03:00]}  c6 {[%clk 0:02:56]} 4. Nc3 {[%clk 0:02:59]}  a6 {[%clk 0:02:50]} 5. d4 {[%clk 0:02:58]}  Bg4 {[%clk 0:02:47]} 6. h3 {[%clk 0:02:53]}  Bxf3 {[%clk 0:02:46]} 7. Qxf3 {[%clk 0:02:52]}  e6 {[%clk 0:02:47]} 8. Bd3 {[%clk 0:02:51]}  Nbd7 {[%clk 0:02:44]} 9. O-O {[%clk 0:02:51]}  Bb4 {[%clk 0:02:42]} 10. Bd2 {[%clk 0:02:47]}  O-O {[%clk 0:02:37]} 11. Rfd1 {[%clk 0:02:45]}  Ba5 {[%clk 0:02:34]} 12. Rac1 {[%clk 0:02:44]}  Re8 {[%clk 0:02:34]} 13. a3 {[%clk 0:02:40]}  Bc7 {[%clk 0:02:31]} 14. e4 {[%clk 0:02:37]}  dxe4 {[%clk 0:02:30]} 15. Nxe4 {[%clk 0:02:38]}  Nxe4 {[%clk 0:02:30]} 16. Qxe4 {[%clk 0:02:38]}  Nf6 {[%clk 0:02:30]} 17. Qh4 {[%clk 0:02:38]}  Qd6 {[%clk 0:02:27]} 18. g3 {[%clk 0:02:34]}  Qe7 {[%clk 0:02:25]} 19. d5 {[%clk 0:02:21]}  exd5 {[%clk 0:02:16]} 20. cxd5 {[%clk 0:02:21]}  cxd5 {[%clk 0:02:07]} 21. Bg5 {[%clk 0:02:13]}  Be5 {[%clk 0:01:53]} 22. Bxh7+ {[%clk 0:02:12]}  Kf8 {[%clk 0:01:50]} 23. Be4 {[%clk 0:02:06]}  Qe6 {[%clk 0:01:43]} 24. Bxd5 {[%clk 0:02:03]}  Qf5 {[%clk 0:01:36]} 25. Qh8+ {[%clk 0:02:02]}  Ng8 {[%clk 0:01:36]} 26. Be3 {[%clk 0:01:54]}  Rac8 {[%clk 0:01:29]} 27. Bxb7 {[%clk 0:01:51]}  Rxc1 {[%clk 0:01:14]} 28. Rxc1 {[%clk 0:01:52]}  Bd6 {[%clk 0:01:14]} 29. Rc3 {[%clk 0:01:39]}  Qb1+ {[%clk 0:01:08]} 30. Kg2 {[%clk 0:01:35]}  Qxb2 {[%clk 0:01:08]} 31. Bc6 {[%clk 0:01:33]}  Qxc3 {[%clk 0:00:59]} 32. Bxe8 {[%clk 0:01:33]}  Qc4 {[%clk 0:00:59]} 33. Bd7 {[%clk 0:01:26]}  Qe4+ {[%clk 0:00:55]} 34. Kh2 {[%clk 0:01:23]}  Bxa3 {[%clk 0:00:55]} 35. Qh5 {[%clk 0:01:19]}  Bb4 {[%clk 0:00:54]} 36. Bf5 {[%clk 0:01:14]}  Qe5 {[%clk 0:00:50]} 37. Qg4 {[%clk 0:01:05]}  Bc5 {[%clk 0:00:48]} 38. Qh4 {[%clk 0:00:49]}  g6 {[%clk 0:00:41]} 39. Qe4 {[%clk 0:00:37]}  Qxe4 {[%clk 0:00:39]} 40. Bxc5+ {[%clk 0:00:36]}  Qe7 {[%clk 0:00:39]} 41. Bxe7+ {[%clk 0:00:36]}  Kxe7 {[%clk 0:00:37]} 42. Bc2 {[%clk 0:00:35]}  Nf6 {[%clk 0:00:36]} 43. g4 {[%clk 0:00:34]}  a5 {[%clk 0:00:36]} 44. Kg3 {[%clk 0:00:34]}  Nd5 {[%clk 0:00:36]} 45. h4 {[%clk 0:00:33]}  Nc3 {[%clk 0:00:36]} 46. Kf4 {[%clk 0:00:25]}  a4 {[%clk 0:00:35]} 47. Kg5 {[%clk 0:00:26]}  a3 {[%clk 0:00:32]} 48. Bb3 {[%clk 0:00:27]}  a2 {[%clk 0:00:27]} 49. Bxa2 {[%clk 0:00:27]}  Nxa2 {[%clk 0:00:28]} 50. h5 {[%clk 0:00:27]}  gxh5 {[%clk 0:00:29]} 51. gxh5 {[%clk 0:00:28]}  Nc3 {[%clk 0:00:28]} 52. Kf5 {[%clk 0:00:25]}  Nd5 {[%clk 0:00:26]} 53. h6 {[%clk 0:00:24]}  Nf6 {[%clk 0:00:26]} 54. f3 {[%clk 0:00:23]}  Nh7 {[%clk 0:00:26]} 55. Ke5 {[%clk 0:00:24]}  f6+ {[%clk 0:00:26]} 56. Kf5 {[%clk 0:00:23]}  Kf7 {[%clk 0:00:26]} 57. f4 {[%clk 0:00:23]}  Nf8 {[%clk 0:00:26]} 58. Ke4 {[%clk 0:00:20]}  Kg6 {[%clk 0:00:26]} 59. Kd5 {[%clk 0:00:20]}  Kxh6 {[%clk 0:00:26]} 60. Kd6 {[%clk 0:00:20]}  Kg6 {[%clk 0:00:27]} 61. Ke7 {[%clk 0:00:19]}  Nh7 {[%clk 0:00:26]} 62. Ke6 {[%clk 0:00:20]}  f5 {[%clk 0:00:26]} 63. Ke5 {[%clk 0:00:20]}  Ng5 {[%clk 0:00:26]} 64. fxg5 {[%clk 0:00:19]}  Kxg5 {[%clk 0:00:27]} 65. Kd4 {[%clk 0:00:20]}  Kg4 {[%clk 0:00:27]} 66. Ke3 {[%clk 0:00:20]}  Kg3 {[%clk 0:00:28]} 67. Ke2 {[%clk 0:00:20]}  f4 {[%clk 0:00:26]} 68. Kf1 {[%clk 0:00:21]}  Kf3 {[%clk 0:00:27]} 69. Kg1 {[%clk 0:00:21]}  Ke2 {[%clk 0:00:27]} 70. Kg2 {[%clk 0:00:21]}  f3+ {[%clk 0:00:28]} 0-1


[Site "https://www.chess.com"]

[Event "Titled Tuesday Blitz August 10 2021"]
[White "Bluebaum, Matthias"]
[Black "Liyanage, Ranindu Dilshan"]
[WhiteFideId "24651516"]
[BlackFideId "9915834"]
[WhiteElo "2685"]
[BlackElo "1839"]
[Result "1-0"]
[Round "02"]
[TimeControl "180+1"]
[Date "2021.08.10"]
[WhiteClock "0:01:41"]
[BlackClock "0:00:30"]

1. d4 {[%clk 0:03:00]}  Nf6 {[%clk 0:02:59]} 2. c4 {[%clk 0:03:01]}  e6 {[%clk 0:03:00]} 3. Nc3 {[%clk 0:03:01]}  Bb4 {[%clk 0:03:00]} 4. e3 {[%clk 0:03:01]}  O-O {[%clk 0:03:00]} 5. Bd2 {[%clk 0:03:02]}  b6 {[%clk 0:02:55]} 6. Bd3 {[%clk 0:03:00]}  Bb7 {[%clk 0:02:53]} 7. Nf3 {[%clk 0:03:00]}  d5 {[%clk 0:02:52]} 8. cxd5 {[%clk 0:03:00]}  exd5 {[%clk 0:02:53]} 9. O-O {[%clk 0:03:00]}  a6 {[%clk 0:02:49]} 10. Ne5 {[%clk 0:02:58]}  Nbd7 {[%clk 0:02:47]} 11. Rc1 {[%clk 0:02:57]}  Bd6 {[%clk 0:02:42]} 12. f4 {[%clk 0:02:55]}  c5 {[%clk 0:02:37]} 13. Qf3 {[%clk 0:02:55]}  Rc8 {[%clk 0:02:26]} 14. Qh3 {[%clk 0:02:53]}  Rc7 {[%clk 0:02:18]} 15. Be1 {[%clk 0:02:48]}  Ne4 {[%clk 0:02:13]} 16. Bh4 {[%clk 0:02:43]}  Qe8 {[%clk 0:02:03]} 17. Bxe4 {[%clk 0:02:24]}  dxe4 {[%clk 0:02:01]} 18. Nc4 {[%clk 0:02:25]}  Be7 {[%clk 0:01:45]} 19. d5 {[%clk 0:02:24]}  Bxh4 {[%clk 0:01:36]} 20. Qxh4 {[%clk 0:02:25]}  b5 {[%clk 0:01:19]} 21. Nd6 {[%clk 0:02:24]}  Qa8 {[%clk 0:01:19]} 22. Nf5 {[%clk 0:01:56]}  Nb6 {[%clk 0:00:58]} 23. Nxe4 {[%clk 0:01:41]}  Nxd5 {[%clk 0:00:44]} 24. Rf3 {[%clk 0:01:41]}  Nxe3 {[%clk 0:00:33]} 25. Nf6+ {[%clk 0:01:41]}  gxf6 {[%clk 0:00:30]} 26. Qg3+ {[%clk 0:01:41]} 1-0


[Site "https://www.chess.com"]

[Event "Titled Tuesday Blitz August 10 2021"]
[White "Garcia Ramos, Daniel"]
[Black "Bortnyk, Olexandr"]
[WhiteFideId "32010311"]
[BlackFideId "14120828"]
[WhiteElo "2321"]
[BlackElo "2723"]
[Result "0-1"]
[Round "02"]
[TimeControl "180+1"]
[Date "2021.08.10"]
[WhiteClock "0:00:05"]
[BlackClock "0:00:30"]

1. c4 {[%clk 0:03:00]}  f5 {[%clk 0:02:59]} 2. g3 {[%clk 0:02:56]}  Nf6 {[%clk 0:03:00]} 3. Bg2 {[%clk 0:02:54]}  d6 {[%clk 0:03:00]} 4. Nc3 {[%clk 0:02:55]}  g6 {[%clk 0:02:58]} 5. Nf3 {[%clk 0:02:54]}  Bg7 {[%clk 0:02:58]} 6. d4 {[%clk 0:02:54]}  O-O {[%clk 0:02:58]} 7. O-O {[%clk 0:02:55]}  c6 {[%clk 0:02:58]} 8. d5 {[%clk 0:02:53]}  e5 {[%clk 0:02:58]} 9. dxe6 {[%clk 0:02:53]}  Bxe6 {[%clk 0:02:58]} 10. b3 {[%clk 0:02:39]}  Ne4 {[%clk 0:02:58]} 11. Nxe4 {[%clk 0:02:39]}  fxe4 {[%clk 0:02:59]} 12. Nd4 {[%clk 0:02:39]}  Bf7 {[%clk 0:02:59]} 13. Rb1 {[%clk 0:02:37]}  d5 {[%clk 0:02:57]} 14. c5 {[%clk 0:02:36]}  a5 {[%clk 0:02:53]} 15. a3 {[%clk 0:02:33]}  Nd7 {[%clk 0:02:49]} 16. b4 {[%clk 0:02:28]}  axb4 {[%clk 0:02:50]} 17. axb4 {[%clk 0:02:29]}  Ne5 {[%clk 0:02:45]} 18. Bf4 {[%clk 0:02:28]}  Qe7 {[%clk 0:02:40]} 19. h4 {[%clk 0:02:23]}  Nc4 {[%clk 0:02:37]} 20. e3 {[%clk 0:02:12]}  Ra2 {[%clk 0:02:33]} 21. b5 {[%clk 0:01:40]}  Qxc5 {[%clk 0:02:31]} 22. bxc6 {[%clk 0:01:40]}  bxc6 {[%clk 0:02:31]} 23. Rb7 {[%clk 0:01:40]}  Rfa8 {[%clk 0:02:13]} 24. Qg4 {[%clk 0:01:32]}  Bxd4 {[%clk 0:01:17]} 25. exd4 {[%clk 0:01:32]}  Qxd4 {[%clk 0:01:15]} 26. Qd7 {[%clk 0:01:24]}  Rf8 {[%clk 0:00:49]} 27. Bh6 {[%clk 0:00:21]}  Ne5 {[%clk 0:00:48]} 28. Qd6 {[%clk 0:00:21]}  Re8 {[%clk 0:00:42]} 29. Rb8 {[%clk 0:00:15]}  Ra8 {[%clk 0:00:39]} 30. Rfb1 {[%clk 0:00:15]}  Nc4 {[%clk 0:00:31]} 31. Qxc6 {[%clk 0:00:06]}  Raxb8 {[%clk 0:00:31]} 32. Rxb8 {[%clk 0:00:06]}  Rxb8 {[%clk 0:00:32]} 33. Qc7 {[%clk 0:00:06]}  Re8 {[%clk 0:00:30]} 34. Bh3 {[%clk 0:00:06]}  e3 {[%clk 0:00:29]} 35. fxe3 {[%clk 0:00:05]}  Nxe3 {[%clk 0:00:30]} 0-1


[Site "https://www.chess.com"]